{"text_format":"1","workbook":"xlsx","n_sheets":1,"sheets":["mapa"],"not_rendered":{"charts":0,"images":0,"macros":1,"external_links":0,"defined_names":42,"comments":0,"pivot_tables":0},"unopened":[],"bounds":{"document_bytes":16777216,"sheet_cells":100000,"rows_first":2000,"rows_last":500,"rows_between":2000,"halvings":0,"cell_chars":16384,"cell_head_chars":4096},"cells_cut":0,"cells_raw":0,"read":"whole","date_system":"1900"}

{"sheet":"mapa","index":0,"n_rows":63,"n_cols":28,"rows_kept":63,"cut":false,"hidden":false,"merged":[[1,17,1,21]]}
[null,null,null,null,null,null,null,null,null,null,null,null,null,null,null,"Seleccionar paleta"]
[null,null,null,null,null,null,null,null,null,null,null,"País","Abr","Dato","Niveles","Paleta 4",null,"Paletas de colores",null,null,null,null,null,null,null,{"$f":"CONCATENATE(\"Paleta 1_\",AA2)","v":"Paleta 1_1"},1,7039480]
[null,null,null,null,null,null,null,null,null,null,null,"Albania","ALB",3639453,{"$f":"ROUNDUP((RANK(N3,$N$3:$N$39,1)/COUNT($N$3:$N$39))*VLOOKUP($P$2,$X$3:$Y$6,2,0),0)","v":8},{"$f":"VLOOKUP(CONCATENATE($P$2,\"_\",O3),$Z$2:$AB$63,3,0)","v":16114387},null,"Paleta 1",1,null,"Paleta 4",1,null,"Paleta 1",5,{"$f":"CONCATENATE(\"Paleta 1_\",AA3)","v":"Paleta 1_2"},2,7842555]
[null,null,null,null,null,null,null,null,null,null,null,"Austria","AUT",8210281,20,{"$f":"VLOOKUP(CONCATENATE($P$2,\"_\",O4),$Z$2:$AB$63,3,0)","v":14462599},null,null,2,null,null,2,null,"Paleta 2",10,"Paleta 1_3",3,8711167]
[null,null,null,null,null,null,null,null,null,null,null,"Belarus","BLR",9648533,22,13475962,null,null,3,null,null,3,null,"Paleta 3",10,"Paleta 1_4",4,8443313]
[null,null,null,null,null,null,null,null,null,null,null,"Belgium","BEL",10414336,25,12028774,null,null,4,null,null,4,null,"Paleta 4",37,"Paleta 1_5",5,8109667]
[null,null,null,null,null,null,null,null,null,null,null,"Bosnia and Herzegovina","BIH",4613414,12,15651514,null,null,5,null,null,5,null,null,null,{"$f":"CONCATENATE(\"Paleta 2_\",AA7)","v":"Paleta 2_1"},1,10285055]
[null,null,null,null,null,null,null,null,null,null,null,"Bulgaria","BGR",7204687,17,15187354,null,null,null,null,null,6,null,null,null,{"$f":"CONCATENATE(\"Paleta 2_\",AA8)","v":"Paleta 2_2"},2,10087150]
[null,null,null,null,null,null,null,null,null,null,null,"Croatia","HRV",4489409,11,15783616,null,null,null,null,null,7,null,null,null,"Paleta 2_3",3,9823709]
[null,null,null,null,null,null,null,null,null,null,null,"Czech Republic","CZE",10211904,24,12489325,null,"Paleta 2",1,null,null,8,null,null,null,"Paleta 2_4",4,9560011]
[null,null,null,null,null,null,null,null,null,null,null,"Denmark","DNK",5500510,16,15253920,null,null,2,null,null,9,null,null,null,"Paleta 2_5",5,9362106]
[null,null,null,null,null,null,null,null,null,null,null,"Estonia","EST",1299371,3,16578547,null,null,3,null,null,10,null,null,null,"Paleta 2_6",6,9098409]
[null,null,null,null,null,null,null,null,null,null,null,"Finland","FIN",5250275,14,15452589,null,null,4,null,null,11,null,null,null,"Paleta 2_7",7,8834967]
[null,null,null,null,null,null,null,null,null,null,null,"France","FRA",64057792,35,7095589,null,null,5,null,null,12,null,null,null,"Paleta 2_8",8,8636806]
[null,null,null,null,null,null,null,null,null,null,null,"Germany","DEU",82329758,36,6635038,null,null,6,null,null,13,null,null,null,"Paleta 2_9",9,8373365]
[null,null,null,null,null,null,null,null,null,null,null,"Greece","GRC",10737428,27,11042137,null,null,7,null,null,14,null,null,null,"Paleta 2_10",10,8109667]
[null,null,null,null,null,null,null,null,null,null,null,"Hungary","HUN",9905596,23,13015411,null,null,8,null,null,15,null,null,null,{"$f":"CONCATENATE(\"Paleta 3_\",AA17)","v":"Paleta 3_1"},1,2650623]
[null,null,null,null,null,null,null,null,null,null,null,"Ireland","IRL",4203200,9,15982285,null,null,9,null,null,16,null,null,null,{"$f":"CONCATENATE(\"Paleta 3_\",AA18)","v":"Paleta 3_2"},2,3440639]
[null,null,null,null,null,null,null,null,null,null,null,"Italy","ITA",58126212,33,8082226,null,null,10,null,null,17,null,null,null,"Paleta 3_3",3,4296191]
[null,null,null,null,null,null,null,null,null,null,null,"Latvia","LVA",2231503,6,16313312,null,null,null,null,null,18,null,null,null,"Paleta 3_4",4,5151743]
[null,null,null,null,null,null,null,null,null,null,null,"Lithuania","LTU",3555179,7,16180953,null,null,null,null,null,19,null,null,null,"Paleta 3_5",5,6007295]
[null,null,null,null,null,null,null,null,null,null,null,"Luxembourg","LUX",491775,2,16710649,null,"Paleta 3",1,null,null,20,null,null,null,"Paleta 3_6",6,6862847]
[null,null,null,null,null,null,null,null,null,null,null,"Macedonia","MKD",2066718,5,16379878,null,null,2,null,null,21,null,null,null,"Paleta 3_7",7,7718399]
[null,null,null,null,null,null,null,null,null,null,null,"Malta","MAL",405165,1,16777215,null,null,3,null,null,22,null,null,null,"Paleta 3_8",8,8573951]
[null,null,null,null,null,null,null,null,null,null,null,"Moldova","MDA",4320748,10,15850182,null,null,4,null,null,23,null,null,null,"Paleta 3_9",9,9429503]
[null,null,null,null,null,null,null,null,null,null,null,"Netherlands","NLD",16715999,28,10516050,null,null,5,null,null,24,null,null,null,"Paleta 3_10",10,10285055]
[null,null,null,null,null,null,null,null,null,null,null,"Norway","NOR",4660539,13,15584691,null,null,6,null,null,25,null,null,null,{"$f":"CONCATENATE(\"Paleta 4_\",AA27)","v":"Paleta 4_1"},1,16777215]
[null,null,null,null,null,null,null,null,null,null,null,"Poland","POL",38482919,30,9594949,null,null,7,null,null,26,null,null,null,{"$f":"CONCATENATE(\"Paleta 4_\",AA28)","v":"Paleta 4_2"},2,16710649]
[null,null,null,null,null,null,null,null,null,null,null,"Portugal","PRT",10707924,26,11502688,null,null,8,null,null,27,null,null,null,"Paleta 4_3",3,16578547]
[null,null,null,null,null,null,null,null,null,null,null,"Romania","ROM",22215421,29,10055500,null,null,9,null,null,28,null,null,null,"Paleta 4_4",4,16511980]
[null,null,null,null,null,null,null,null,null,null,null,"Russia","RUS",140041247,37,6108951,null,null,10,null,null,29,null,null,null,"Paleta 4_5",5,16379878]
[null,null,null,null,null,null,null,null,null,null,null,"Serbia","SR",7379339,18,15055252,null,null,null,null,null,30,null,null,null,"Paleta 4_6",6,16313312]
[null,null,null,null,null,null,null,null,null,null,null,"Slovakia","SVK",5463046,15,15386023,null,null,null,null,null,31,null,null,null,"Paleta 4_7",7,16180953]
[null,null,null,null,null,null,null,null,null,null,null,"Slovenia","SVN",2005692,4,16511980,null,null,null,null,null,32,null,null,null,"Paleta 4_8",8,16114387]
[null,null,null,null,null,null,null,null,null,null,null,"Spain","ESP",40525002,31,9068863,null,null,null,null,null,33,null,null,null,"Paleta 4_9",9,15982285]
[null,null,null,null,null,null,null,null,null,null,null,"Sweden","SWE",9059651,21,14002048,null,null,null,null,null,34,null,null,null,"Paleta 4_10",10,15850182]
[null,null,null,null,null,null,null,null,null,null,null,"Switzerland","CHE",7604467,19,14922893,null,null,null,null,null,35,null,null,null,"Paleta 4_11",11,15783616]
[null,null,null,null,null,null,null,null,null,null,null,"Ukraine","UKR",45700395,32,8608312,null,null,null,null,null,36,null,null,null,"Paleta 4_12",12,15651514]
[null,null,null,null,null,null,null,null,null,null,null,"United Kingdom","GBR",61113205,34,7621675,null,null,null,null,null,37,null,null,null,"Paleta 4_13",13,15584691]
[null,null,null,null,null,null,null,null,null,null,null,null,null,null,null,null,null,null,null,null,null,null,null,null,null,"Paleta 4_14",14,15452589]
[null,null,null,null,null,null,null,null,null,null,null,null,null,null,null,null,null,null,null,null,null,null,null,null,null,"Paleta 4_15",15,15386023]
[null,null,null,null,null,null,null,null,null,null,null,null,null,null,null,null,null,null,null,null,null,null,null,null,null,"Paleta 4_16",16,15253920]
[null,null,null,null,null,null,null,null,null,null,null,null,null,null,null,null,null,null,null,null,null,null,null,null,null,"Paleta 4_17",17,15187354]
[null,null,null,null,null,null,null,null,null,null,null,null,null,null,null,null,null,null,null,null,null,null,null,null,null,"Paleta 4_18",18,15055252]
[null,null,null,null,null,null,null,null,null,null,null,null,null,null,null,null,null,null,null,null,null,null,null,null,null,"Paleta 4_19",19,14922893]
[null,null,null,null,null,null,null,null,null,null,null,null,null,null,null,null,null,null,null,null,null,null,null,null,null,"Paleta 4_20",20,14462599]
[null,null,null,null,null,null,null,null,null,null,null,null,null,null,null,null,null,null,null,null,null,null,null,null,null,"Paleta 4_21",21,14002048]
[null,null,null,null,null,null,null,null,null,null,null,null,null,null,null,null,null,null,null,null,null,null,null,null,null,"Paleta 4_22",22,13475962]
[null,null,null,null,null,null,null,null,null,null,null,null,null,null,null,null,null,null,null,null,null,null,null,null,null,"Paleta 4_23",23,13015411]
[null,null,null,null,null,null,null,null,null,null,null,null,null,null,null,null,null,null,null,null,null,null,null,null,null,"Paleta 4_24",24,12489325]
[null,null,null,null,null,null,null,null,null,null,null,null,null,null,null,null,null,null,null,null,null,null,null,null,null,"Paleta 4_25",25,12028774]
[null,null,null,null,null,null,null,null,null,null,null,null,null,null,null,null,null,null,null,null,null,null,null,null,null,"Paleta 4_26",26,11502688]
[null,null,null,null,null,null,null,null,null,null,null,null,null,null,null,null,null,null,null,null,null,null,null,null,null,"Paleta 4_27",27,11042137]
[null,null,null,null,null,null,null,null,null,null,null,null,null,null,null,null,null,null,null,null,null,null,null,null,null,"Paleta 4_28",28,10516050]
[null,null,null,null,null,null,null,null,null,null,null,null,null,null,null,null,null,null,null,null,null,null,null,null,null,"Paleta 4_29",29,10055500]
[null,null,null,null,null,null,null,null,null,null,null,null,null,null,null,null,null,null,null,null,null,null,null,null,null,"Paleta 4_30",30,9594949]
[null,null,null,null,null,null,null,null,null,null,null,null,null,null,null,null,null,null,null,null,null,null,null,null,null,"Paleta 4_31",31,9068863]
[null,null,null,null,null,null,null,null,null,null,null,null,null,null,null,null,null,null,null,null,null,null,null,null,null,"Paleta 4_32",32,8608312]
[null,null,null,null,null,null,null,null,null,null,null,null,null,null,null,null,null,null,null,null,null,null,null,null,null,"Paleta 4_33",33,8082226]
[null,null,null,null,null,null,null,null,null,null,null,null,null,null,null,null,null,null,null,null,null,null,null,null,null,"Paleta 4_34",34,7621675]
[null,null,null,null,null,null,null,null,null,null,null,null,null,null,null,null,null,null,null,null,null,null,null,null,null,"Paleta 4_35",35,7095589]
[null,null,null,null,null,null,null,null,null,null,null,null,null,null,null,null,null,null,null,null,null,null,null,null,null,"Paleta 4_36",36,6635038]
[null,null,null,null,null,null,null,null,null,null,null,null,null,null,null,null,null,null,null,null,null,null,null,null,null,"Paleta 4_37",37,6108951]